[Event "Queens Festival Final Team 2022"]
[Site "Tornelo"]
[Date "2022.06.26"]
[Round "4.3"]
[White "Ismayil, Malak"]
[Black "Ovezdurdiyeva, Jemal"]
[Result "0-1"]
[ECO "B51"]
[WhiteElo "2001"]
[BlackElo "2061"]
[Annotator "NA RC"]
[PlyCount "80"]
[EventDate "2022.06.24"]
[EventType "team-tourn"]
[EventCountry "NET"]
[SourceTitle "playchess.com"]
[Source "ChessBase"]
[SourceQuality "1"]
[WhiteTeam "Azerbaijan"]
[BlackTeam "Turkmenistan"]
[WhiteTeamCountry "AZE"]
[BlackTeamCountry "TKM"]
[TimeControl "180+2"]

1. e4 {[%emt 0:00:02]} c5 {[%emt 0:00:07]} 2. Nf3 {[%emt 0:00:03]} d6 {[%emt 0:00:01]} 3. Bb5+ {[%emt 0:00:02]} Nd7 {[%emt 0:00:03]} 4. O-O {[%emt 0:00:02]} Ngf6 {[%emt 0:00:02]} 5. Qe2 {[%emt 0:00:07]} e5 {[%emt 0:00:03]} 6. c3 {[%emt 0:00:05]} a6 {[%emt 0:00:02]} 7. Bxd7+ {[%emt 0:00:02]} Bxd7 {[%emt 0:00:14]} 8. Rd1 {[%emt 0:00:04]} Be7 {[%emt 0:00:08]} 9. d4 {[%emt 0:00:02]} Qc7 {[%emt 0:00:01]} 10. Bg5 {[%emt 0:00:04]} O-O {[%emt 0:00:06]} 11. Nbd2 {[%emt 0:00:23]} cxd4 {[%emt 0:00:08]} 12. cxd4 {[%emt 0:00:07]} Bb5 {[%emt 0:00:01]} 13. Qe1 {[%emt 0:00:05]} Rae8 {[%emt 0:00:21]} 14. a4 {[%emt 0:00:15]} Bd7 {[%emt 0:00:10]} 15. d5 {[%emt 0:00:06]} Nh5 {[%emt 0:00:11]} 16. Be3 {[%emt 0:00:11]} f5 {[%emt 0:00:14]} 17. Rdc1 {[%emt 0:00:02]} Qa5 {[%emt 0:00:09]} 18. Nc4 {[%emt 0:00:36]} Qxe1+ {[%emt 0:00:03]} 19. Rxe1 {[%emt 0:00:02]} fxe4 {[%emt 0:00:11]} 20. Nfd2 {[%emt 0:00:03]} Bf5 {[%emt 0:00:01]} 21. g3 {[%emt 0:00:16]} Nf6 {[%emt 0:00:06]} 22. Nb6 {[%emt 0:00:02]} Bd8 {[%emt 0:00:05]} 23. Ndc4 {[%emt 0:00:02]} Be7 {[%emt 0:00:07]} 24. Bg5 {[%emt 0:00:06]} Bg6 {[%emt 0:00:31]} 25. Bxf6 {[%emt 0:00:04]} Rxf6 {[%emt 0:00:03]} 26. Re2 {[%emt 0:00:17]} Rf3 {[%emt 0:00:05]} 27. Nd2 {[%emt 0:00:04]} Rd3 {[%emt 0:00:04]} 28. Nxe4 {[%emt 0:00:12]} Rb3 {[%emt 0:00:16]} 29. Nc4 {[%emt 0:00:06]} Bxe4 {[%emt 0:00:04]} 30. Rxe4 {[%emt 0:00:02]} b5 {[%emt 0:00:01]} 31. axb5 {[%emt 0:00:04]} axb5 {[%emt 0:00:01]} 32. Ne3 {[%emt 0:00:11]} Rxb2 {[%emt 0:00:02]} 33. Ra7 {[%emt 0:00:02]} Bd8 {[%emt 0:00:12]} 34. Rg4 {[%emt 0:00:04]} g6 {[%emt 0:00:02]} 35. Rd7 {[%emt 0:00:07]} Bb6 {[%emt 0:00:08]} 36. Rxd6 {[%emt 0:00:03]} Bxe3 {[%emt 0:00:02]} 37. fxe3 {[%emt 0:00:01]} Ra8 {[%emt 0:00:01]} 38. Rgxg6+ {[%emt 0:00:08]} hxg6 {[%emt 0:00:03]} 39. Rxg6+ {[%emt 0:00:02]} Kf7 {[%emt 0:00:01]} 40. Rg5 {[%emt 0:00:03]} Ra1# {[%emt 0:00:02]} 0-1

[Event "Queens Festival Final Team 2022"]
[Site "Tornelo"]
[Date "2022.06.26"]
[Round "4.3"]
[White "Shohradowa, Lala"]
[Black "Mammadova, Aysel"]
[Result "1-0"]
[ECO "A15"]
[WhiteElo "1856"]
[BlackElo "1893"]
[Annotator "NA RC"]
[PlyCount "115"]
[EventDate "2022.06.24"]
[EventType "team-tourn"]
[EventCountry "NET"]
[SourceTitle "playchess.com"]
[Source "ChessBase"]
[SourceQuality "1"]
[WhiteTeam "Turkmenistan"]
[BlackTeam "Azerbaijan"]
[WhiteTeamCountry "TKM"]
[BlackTeamCountry "AZE"]
[TimeControl "180+2"]

1. d4 {[%emt 0:00:02]} Nf6 {[%emt 0:00:06]} 2. c4 {[%emt 0:00:02]} e6 {[%emt 0:00:01]} 3. g3 {[%emt 0:00:03]} Be7 {[%emt 0:00:03]} 4. Bg2 {[%emt 0:00:02]} d6 {[%emt 0:00:01]} 5. Nf3 {[%emt 0:00:02]} Nbd7 {[%emt 0:00:02]} 6. O-O {[%emt 0:00:02]} O-O {[%emt 0:00:02]} 7. Nc3 {[%emt 0:00:02]} e5 {[%emt 0:00:01]} 8. dxe5 {[%emt 0:00:08]} Nxe5 {[%emt 0:00:04]} 9. Nxe5 {[%emt 0:00:02]} dxe5 {[%emt 0:00:02]} 10. Qc2 {[%emt 0:00:04]} c6 {[%emt 0:00:01]} 11. a4 {[%emt 0:00:02]} Qc7 {[%emt 0:00:03]} 12. a5 {[%emt 0:00:02]} Be6 {[%emt 0:00:02]} 13. b3 {[%emt 0:00:04]} Rad8 {[%emt 0:00:11]} 14. a6 {[%emt 0:00:02]} b6 {[%emt 0:00:09]} 15. Bb2 {[%emt 0:00:12]} Nd7 {[%emt 0:00:03]} 16. Rfd1 {[%emt 0:00:08]} Nb8 {[%emt 0:00:15]} 17. Ne4 {[%emt 0:00:37]} Rxd1+ {[%emt 0:00:03]} 18. Qxd1 {[%emt 0:00:05]} Rd8 {[%emt 0:00:02]} 19. Qc2 {[%emt 0:00:02]} Bc8 {[%emt 0:00:02]} 20. Qc3 {[%emt 0:00:04]} f6 {[%emt 0:00:03]} 21. b4 {[%emt 0:00:21]} Nxa6 {[%emt 0:00:04]} 22. c5 {[%emt 0:00:09]} bxc5 {[%emt 0:00:08]} 23. Qc4+ {[%emt 0:00:05]} Kh8 {[%emt 0:00:05]} 24. bxc5 {[%emt 0:00:02]} f5 {[%emt 0:00:08]} 25. Nd6 {[%emt 0:00:07]} Bxd6 {[%emt 0:00:03]} 26. cxd6 {[%emt 0:00:02]} Qxd6 {[%emt 0:00:58]} 27. Bxc6 {[%emt 0:00:09]} Nb8 {[%emt 0:00:13]} 28. Bf3 {[%emt 0:00:09]} Be6 {[%emt 0:00:03]} 29. Qc3 {[%emt 0:00:03]} Nd7 {[%emt 0:00:04]} 30. Rxa7 {[%emt 0:00:06]} Qd1+ {[%emt 0:00:17]} 31. Kg2 {[%emt 0:00:02]} Bd5 {[%emt 0:00:02]} 32. Bxd5 {[%emt 0:00:22]} Qxd5+ {[%emt 0:00:03]} 33. f3 {[%emt 0:00:14]} h6 {[%emt 0:00:02]} 34. Qc7 {[%emt 0:00:03]} Qg8 {[%emt 0:00:19]} 35. Ba3 {[%emt 0:00:05]} Nf6 {[%emt 0:00:07]} 36. Qxe5 {[%emt 0:00:08]} Re8 {[%emt 0:00:02]} 37. Qb2 {[%emt 0:00:02]} Nd5 {[%emt 0:00:03]} 38. Bc5 {[%emt 0:00:06]} Ne3+ {[%emt 0:00:03]} 39. Bxe3 {[%emt 0:00:02]} Rxe3 {[%emt 0:00:02]} 40. Kf2 {[%emt 0:00:01]} Re6 {[%emt 0:00:06]} 41. Rc7 {[%emt 0:00:05]} Qf8 {[%emt 0:00:03]} 42. Qc2 {[%emt 0:00:03]} Kh7 {[%emt 0:00:04]} 43. g4 {[%emt 0:00:02]} Qf6 {[%emt 0:00:03]} 44. Qxf5+ {[%emt 0:00:03]} Qxf5 {[%emt 0:00:02]} 45. gxf5 {[%emt 0:00:01]} Ra6 {[%emt 0:00:03]} 46. e4 {[%emt 0:00:02]} h5 {[%emt 0:00:05]} 47. Kg3 {[%emt 0:00:02]} Kh6 {[%emt 0:00:02]} 48. h4 {[%emt 0:00:02]} Rf6 {[%emt 0:00:02]} 49. Re7 {[%emt 0:00:02]} Rb6 {[%emt 0:00:03]} 50. Re6+ {[%emt 0:00:02]} Rxe6 {[%emt 0:00:02]} 51. fxe6 {[%emt 0:00:01]} Kg6 {[%emt 0:00:02]} 52. f4 {[%emt 0:00:01]} Kf6 {[%emt 0:00:02]} 53. f5 {[%emt 0:00:03]} g6 {[%emt 0:00:03]} 54. Kf4 {[%emt 0:00:02]} gxf5 {[%emt 0:00:04]} 55. exf5 {[%emt 0:00:02]} Ke7 {[%emt 0:00:02]} 56. Ke5 {[%emt 0:00:01]} Kf8 {[%emt 0:00:02]} 57. f6 {[%emt 0:00:01]} Kg8 {[%emt 0:00:02]} 58. f7+ {[%emt 0:00:03]} 1-0

[Event "Queens Festival Final Team 2022"]
[Site "Tornelo"]
[Date "2022.06.26"]
[Round "4.3"]
[White "Khalilova, Khadija"]
[Black "Agajanova, Meryem"]
[Result "1-0"]
[ECO "B22"]
[WhiteElo "1777"]
[BlackElo "1783"]
[Annotator "NA"]
[PlyCount "57"]
[EventDate "2022.06.24"]
[EventType "team-tourn"]
[EventCountry "NET"]
[SourceTitle "playchess.com"]
[Source "ChessBase"]
[SourceQuality "1"]
[WhiteTeam "Azerbaijan"]
[BlackTeam "Turkmenistan"]
[WhiteTeamCountry "AZE"]
[BlackTeamCountry "TKM"]
[TimeControl "180+2"]

1. e4 {[%emt 0:00:02]} e6 {[%emt 0:00:04]} 2. d4 {[%emt 0:00:03]} d5 {[%emt 0:00:03]} 3. Nd2 {[%emt 0:00:01]} c5 {[%emt 0:00:02]} 4. exd5 {[%emt 0:00:03]} exd5 {[%emt 0:00:02]} 5. dxc5 {[%emt 0:00:02]} Bxc5 {[%emt 0:00:03]} 6. Ngf3 {[%emt 0:00:02]} Nf6 {[%emt 0:00:03]} 7. Bd3 {[%emt 0:00:02]} O-O {[%emt 0:00:02]} 8. O-O {[%emt 0:00:01]} Nc6 {[%emt 0:00:01]} 9. c3 {[%emt 0:00:03]} Bg4 {[%emt 0:00:05]} 10. h3 {[%emt 0:00:02]} Bh5 {[%emt 0:00:02]} 11. Qc2 {[%emt 0:00:03]} Re8 {[%emt 0:00:06]} 12. Nb3 {[%emt 0:00:06]} Bb6 {[%emt 0:00:26]} 13. Nfd4 {[%emt 0:00:40]} Nxd4 {[%emt 0:00:10]} 14. Nxd4 {[%emt 0:00:02]} Bxd4 {[%emt 0:00:20]} 15. cxd4 {[%emt 0:00:03]} Rc8 {[%emt 0:00:08]} 16. Qb3 {[%emt 0:00:01]} b6 {[%emt 0:00:17]} 17. Bg5 {[%emt 0:00:03]} h6 {[%emt 0:00:03]} 18. Bh4 {[%emt 0:00:04]} Qd6 {[%emt 0:00:12]} 19. Rfe1 {[%emt 0:00:09]} Ne4 {[%emt 0:00:12]} 20. f3 {[%emt 0:00:35]} Nf6 {[%emt 0:00:30]} 21. Kf2 {[%emt 0:00:05]} Nd7 {[%emt 0:00:16]} 22. Bg3 {[%emt 0:00:04]} Qf6 {[%emt 0:00:07]} 23. Qxd5 {[%emt 0:00:05]} Red8 {[%emt 0:00:10]} 24. Qxh5 {[%emt 0:00:23]} Qxd4+ {[%emt 0:00:04]} 25. Re3 {[%emt 0:00:01]} Qxb2+ {[%emt 0:00:09]} 26. Re2 {[%emt 0:00:10]} Qxa1 {[%emt 0:00:01]} 27. Qf5 {[%emt 0:00:09]} Qf6 {[%emt 0:00:02]} 28. Qh7+ {[%emt 0:00:11]} Kf8 {[%emt 0:00:09]} 29. Qh8# {[%emt 0:00:02]} 1-0

[Event "Queens Festival Final Team 2022"]
[Site "Tornelo"]
[Date "2022.06.26"]
[Round "4.4"]
[White "Maksimovic, Suzana"]
[Black "khezrian, Neda"]
[Result "1-0"]
[ECO "D12"]
[WhiteElo "2145"]
[BlackElo "1056"]
[Annotator "NA RC"]
[PlyCount "103"]
[EventDate "2022.06.24"]
[EventType "team-tourn"]
[EventCountry "NET"]
[SourceTitle "playchess.com"]
[Source "ChessBase"]
[SourceQuality "1"]
[WhiteTeam "Serbia"]
[BlackTeam "Iran"]
[WhiteTeamCountry "SRB"]
[BlackTeamCountry "IRI"]
[TimeControl "180+2"]

1. d4 {[%emt 0:00:02]} d5 {[%emt 0:00:05]} 2. c4 {[%emt 0:00:03]} c6 {[%emt 0:00:05]} 3. Nf3 {[%emt 0:00:02]} Nf6 {[%emt 0:00:06]} 4. e3 {[%emt 0:00:02]} Bf5 {[%emt 0:00:02]} 5. Nc3 {[%emt 0:00:01]} Nbd7 {[%emt 0:00:02]} 6. cxd5 {[%emt 0:00:14]} cxd5 {[%emt 0:00:06]} 7. Nh4 {[%emt 0:00:33]} Bg6 {[%emt 0:00:08]} 8. Nxg6 {[%emt 0:00:12]} hxg6 {[%emt 0:00:01]} 9. Qb3 {[%emt 0:00:02]} Qb6 {[%emt 0:00:04]} 10. Nxd5 {[%emt 0:00:33]} Qxb3 {[%emt 0:00:20]} 11. Nxf6+ {[%emt 0:00:03]} gxf6 {[%emt 0:00:06]} 12. axb3 {[%emt 0:00:01]} e5 {[%emt 0:00:04]} 13. Bc4 {[%emt 0:00:18]} exd4 {[%emt 0:00:08]} 14. exd4 {[%emt 0:00:02]} Bb4+ {[%emt 0:00:03]} 15. Bd2 {[%emt 0:00:10]} Bxd2+ {[%emt 0:00:03]} 16. Kxd2 {[%emt 0:00:01]} Nb6 {[%emt 0:00:05]} 17. Rhe1+ {[%emt 0:00:08]} Kf8 {[%emt 0:00:07]} 18. h3 {[%emt 0:00:03]} Kg7 {[%emt 0:00:01]} 19. Re7 {[%emt 0:00:04]} Nxc4+ {[%emt 0:00:05]} 20. bxc4 {[%emt 0:00:03]} Rhd8 {[%emt 0:00:11]} 21. Kc3 {[%emt 0:00:10]} Rdb8 {[%emt 0:00:05]} 22. b4 {[%emt 0:00:05]} a6 {[%emt 0:00:01]} 23. Rae1 {[%emt 0:00:09]} b5 {[%emt 0:00:06]} 24. c5 {[%emt 0:00:02]} Rd8 {[%emt 0:00:08]} 25. Rb7 {[%emt 0:00:07]} Rdb8 {[%emt 0:00:04]} 26. Ree7 {[%emt 0:00:03]} Rxb7 {[%emt 0:00:17]} 27. Rxb7 {[%emt 0:00:02]} Re8 {[%emt 0:00:08]} 28. d5 {[%emt 0:00:04]} Ra8 {[%emt 0:00:08]} 29. d6 {[%emt 0:00:03]} a5 {[%emt 0:00:01]} 30. bxa5 {[%emt 0:00:03]} Rxa5 {[%emt 0:00:05]} 31. d7 {[%emt 0:00:01]} Ra8 {[%emt 0:00:02]} 32. c6 {[%emt 0:00:02]} Rd8 {[%emt 0:00:06]} 33. c7 {[%emt 0:00:02]} Rxd7 {[%emt 0:00:02]} 34. c8=Q {[%emt 0:00:03]} Rxb7 {[%emt 0:00:07]} 35. Qxb7 {[%emt 0:00:01]} b4+ {[%emt 0:00:02]} 36. Qxb4 {[%emt 0:00:02]} g5 {[%emt 0:00:03]} 37. Kd4 {[%emt 0:00:02]} g4 {[%emt 0:00:02]} 38. hxg4 {[%emt 0:00:02]} f5 {[%emt 0:00:02]} 39. gxf5 {[%emt 0:00:01]} f6 {[%emt 0:00:03]} 40. Ke4 {[%emt 0:00:02]} Kh7 {[%emt 0:00:02]} 41. Qe7+ {[%emt 0:00:06]} Kh6 {[%emt 0:00:02]} 42. Qxf6+ {[%emt 0:00:02]} Kh5 {[%emt 0:00:01]} 43. Qg6+ {[%emt 0:00:02]} Kh4 {[%emt 0:00:02]} 44. g4 {[%emt 0:00:06]} Kh3 {[%emt 0:00:03]} 45. g5 {[%emt 0:00:02]} Kg2 {[%emt 0:00:02]} 46. Qh6 {[%emt 0:00:02]} Kf1 {[%emt 0:00:01]} 47. g6 {[%emt 0:00:01]} Ke2 {[%emt 0:00:03]} 48. f4 {[%emt 0:00:02]} Kd1 {[%emt 0:00:01]} 49. Qh2 {[%emt 0:00:02]} Ke1 {[%emt 0:00:03]} 50. g7 {[%emt 0:00:01]} Kf1 {[%emt 0:00:02]} 51. g8=Q {[%emt 0:00:03]} Ke1 {[%emt 0:00:02]} 52. Qgg1# {[%emt 0:00:03]} 1-0

[Event "Queens Festival Final Team 2022"]
[Site "Tornelo"]
[Date "2022.06.26"]
[Round "4.4"]
[White "Masoumi, Sahar"]
[Black "Vujcic, Milena"]
[Result "1-0"]
[ECO "E73"]
[WhiteElo "2004"]
[BlackElo "1987"]
[Annotator "NA RC"]
[PlyCount "69"]
[EventDate "2022.06.24"]
[EventType "team-tourn"]
[EventCountry "NET"]
[SourceTitle "playchess.com"]
[Source "ChessBase"]
[SourceQuality "1"]
[WhiteTeam "Iran"]
[BlackTeam "Serbia"]
[WhiteTeamCountry "IRI"]
[BlackTeamCountry "SRB"]
[TimeControl "180+2"]

1. d4 {[%emt 0:00:02]} Nf6 {[%emt 0:00:05]} 2. c4 {[%emt 0:00:02]} g6 {[%emt 0:00:01]} 3. Nc3 {[%emt 0:00:01]} Bg7 {[%emt 0:00:01]} 4. e4 {[%emt 0:00:01]} d6 {[%emt 0:00:01]} 5. Be2 {[%emt 0:00:01]} O-O {[%emt 0:00:06]} 6. Be3 {[%emt 0:00:02]} e5 {[%emt 0:00:02]} 7. d5 {[%emt 0:00:02]} a5 {[%emt 0:00:03]} 8. g4 {[%emt 0:00:03]} Na6 {[%emt 0:00:03]} 9. h4 {[%emt 0:00:03]} Nd7 {[%emt 0:00:14]} 10. Qd2 {[%emt 0:00:06]} Ndc5 {[%emt 0:00:04]} 11. h5 {[%emt 0:00:11]} Bf6 {[%emt 0:00:15]} 12. O-O-O {[%emt 0:00:11]} g5 {[%emt 0:00:12]} 13. h6 {[%emt 0:00:05]} Be7 {[%emt 0:00:07]} 14. Rh5 {[%emt 0:00:30]} f6 {[%emt 0:00:02]} 15. Nh3 {[%emt 0:00:02]} Bd7 {[%emt 0:00:02]} 16. Kb1 {[%emt 0:00:10]} Be8 {[%emt 0:00:32]} 17. Rxg5+ {[%emt 0:00:13]} fxg5 {[%emt 0:00:02]} 18. Nxg5 {[%emt 0:00:02]} Bg6 {[%emt 0:00:04]} 19. f3 {[%emt 0:00:05]} c6 {[%emt 0:00:11]} 20. Rg1 {[%emt 0:00:16]} a4 {[%emt 0:00:10]} 21. Bd1 {[%emt 0:00:20]} b5 {[%emt 0:00:10]} 22. dxc6 {[%emt 0:00:12]} b4 {[%emt 0:00:18]} 23. Nxa4 {[%emt 0:00:09]} Nxa4 {[%emt 0:00:02]} 24. Bxa4 {[%emt 0:00:02]} Nc5 {[%emt 0:00:02]} 25. Bd1 {[%emt 0:00:14]} Qa5 {[%emt 0:00:11]} 26. b3 {[%emt 0:00:06]} Ra7 {[%emt 0:00:19]} 27. Rg2 {[%emt 0:00:02]} Rfa8 {[%emt 0:00:04]} 28. Qd5+ {[%emt 0:00:02]} Kh8 {[%emt 0:00:05]} 29. Nf7+ {[%emt 0:00:06]} Bxf7 {[%emt 0:00:02]} 30. Qxf7 {[%emt 0:00:02]} Bg5 {[%emt 0:00:06]} 31. Qf5 {[%emt 0:00:16]} Bxe3 {[%emt 0:00:02]} 32. Qf6+ {[%emt 0:00:02]} Kg8 {[%emt 0:00:01]} 33. g5 {[%emt 0:00:04]} Qc7 {[%emt 0:00:10]} 34. g6 {[%emt 0:00:04]} Qg7 {[%emt 0:00:19]} 35. hxg7 {[%emt 0:00:02]} 1-0

[Event "Queens Festival Final Team 2022"]
[Site "Tornelo"]
[Date "2022.06.26"]
[Round "4.4"]
[White "Vukosavljevic, Tatjana"]
[Black "Davari, Sara"]
[Result "0-1"]
[ECO "E05"]
[WhiteElo "1758"]
[BlackElo "1674"]
[Annotator "NA RC"]
[PlyCount "88"]
[EventDate "2022.06.24"]
[EventType "team-tourn"]
[EventCountry "NET"]
[SourceTitle "playchess.com"]
[Source "ChessBase"]
[SourceQuality "1"]
[WhiteTeam "Serbia"]
[BlackTeam "Iran"]
[WhiteTeamCountry "SRB"]
[BlackTeamCountry "IRI"]
[TimeControl "180+2"]

1. Nf3 {[%emt 0:00:02]} d5 {[%emt 0:00:05]} 2. g3 {[%emt 0:00:01]} Nf6 {[%emt 0:00:02]} 3. Bg2 {[%emt 0:00:01]} e6 {[%emt 0:00:02]} 4. O-O {[%emt 0:00:01]} Be7 {[%emt 0:00:00]} 5. d4 {[%emt 0:00:02]} O-O {[%emt 0:00:01]} 6. c4 {[%emt 0:00:01]} dxc4 {[%emt 0:00:02]} 7. Nbd2 {[%emt 0:00:13]} c5 {[%emt 0:00:22]} 8. Nxc4 {[%emt 0:00:04]} Nc6 {[%emt 0:00:03]} 9. dxc5 {[%emt 0:00:17]} Bxc5 {[%emt 0:00:03]} 10. b3 {[%emt 0:00:03]} Qe7 {[%emt 0:00:12]} 11. Bb2 {[%emt 0:00:09]} Rd8 {[%emt 0:00:02]} 12. Qc2 {[%emt 0:00:02]} Nb4 {[%emt 0:00:05]} 13. Qc3 {[%emt 0:00:11]} Nbd5 {[%emt 0:00:05]} 14. Qc2 {[%emt 0:00:15]} Bd7 {[%emt 0:00:09]} 15. e4 {[%emt 0:00:02]} Nb4 {[%emt 0:00:03]} 16. Qe2 {[%emt 0:00:04]} Bb5 {[%emt 0:00:35]} 17. a4 {[%emt 0:00:11]} Bxc4 {[%emt 0:00:03]} 18. Qxc4 {[%emt 0:00:03]} Rac8 {[%emt 0:00:03]} 19. Qe2 {[%emt 0:00:08]} Nd3 {[%emt 0:00:22]} 20. e5 {[%emt 0:00:23]} Ng4 {[%emt 0:00:11]} 21. h3 {[%emt 0:01:05]} Ngxf2 {[%emt 0:00:14]} 22. Kh2 {[%emt 0:00:03]} Nxb2 {[%emt 0:00:08]} 23. Qxb2 {[%emt 0:00:02]} Nd3 {[%emt 0:00:01]} 24. Qe2 {[%emt 0:00:08]} Nb4 {[%emt 0:00:08]} 25. Nh4 {[%emt 0:00:06]} Bd4 {[%emt 0:00:05]} 26. Rad1 {[%emt 0:00:03]} Nc6 {[%emt 0:00:12]} 27. Nf3 {[%emt 0:00:07]} Bb6 {[%emt 0:00:03]} 28. Qe4 {[%emt 0:00:02]} Rxd1 {[%emt 0:00:06]} 29. Rxd1 {[%emt 0:00:03]} Rd8 {[%emt 0:00:01]} 30. Rxd8+ {[%emt 0:00:02]} Qxd8 {[%emt 0:00:02]} 31. h4 {[%emt 0:00:01]} h6 {[%emt 0:00:02]} 32. Ng1 {[%emt 0:00:05]} Qd4 {[%emt 0:00:08]} 33. Qe2 {[%emt 0:00:02]} Qxg1+ {[%emt 0:00:02]} 34. Kh3 {[%emt 0:00:02]} Qe3 {[%emt 0:00:02]} 35. Qc2 {[%emt 0:00:03]} Qxe5 {[%emt 0:00:06]} 36. Be4 {[%emt 0:00:03]} f5 {[%emt 0:00:07]} 37. Bf3 {[%emt 0:00:02]} Qc5 {[%emt 0:00:06]} 38. Qd1 {[%emt 0:00:02]} Qe7 {[%emt 0:00:03]} 39. Bh5 {[%emt 0:00:04]} Qd8 {[%emt 0:00:02]} 40. Qe2 {[%emt 0:00:02]} Qe7 {[%emt 0:00:02]} 41. Qe3 {[%emt 0:00:01]} Bxe3 {[%emt 0:00:02]} 42. Bf3 {[%emt 0:00:02]} f4 {[%emt 0:00:02]} 43. gxf4 {[%emt 0:00:02]} Bxf4 {[%emt 0:00:01]} 44. Kg4 {[%emt 0:00:02]} e5 {[%emt 0:00:01]} 0-1

[Event "Queens Festival Final Team 2022"]
[Site "Tornelo"]
[Date "2022.06.26"]
[Round "4.4"]
[White "Khezrian, Nooralzahra"]
[Black "Vujovic, Vera"]
[Result "0-1"]
[ECO "B23"]
[WhiteElo "1269"]
[BlackElo "1353"]
[Annotator "NA"]
[PlyCount "50"]
[EventDate "2022.06.24"]
[EventType "team-tourn"]
[EventCountry "NET"]
[SourceTitle "playchess.com"]
[Source "ChessBase"]
[SourceQuality "1"]
[WhiteTeam "Iran"]
[BlackTeam "Serbia"]
[WhiteTeamCountry "IRI"]
[BlackTeamCountry "SRB"]
[TimeControl "180+2"]

1. e4 {[%emt 0:00:02]} c5 {[%emt 0:00:05]} 2. Nc3 {[%emt 0:00:02]} d6 {[%emt 0:00:02]} 3. f4 {[%emt 0:00:02]} Nc6 {[%emt 0:00:02]} 4. Bb5 {[%emt 0:00:04]} Nf6 {[%emt 0:00:01]} 5. Bxc6+ {[%emt 0:00:01]} bxc6 {[%emt 0:00:02]} 6. Nf3 {[%emt 0:00:02]} e6 {[%emt 0:00:02]} 7. d3 {[%emt 0:00:01]} d5 {[%emt 0:00:04]} 8. e5 {[%emt 0:00:02]} Nd7 {[%emt 0:00:02]} 9. O-O {[%emt 0:00:03]} Nb6 {[%emt 0:00:02]} 10. Kh1 {[%emt 0:00:06]} c4 {[%emt 0:00:01]} 11. d4 {[%emt 0:00:12]} c5 {[%emt 0:00:02]} 12. Be3 {[%emt 0:00:04]} cxd4 {[%emt 0:00:02]} 13. Nxd4 {[%emt 0:00:09]} Be7 {[%emt 0:00:05]} 14. f5 {[%emt 0:00:02]} exf5 {[%emt 0:00:08]} 15. Nxf5 {[%emt 0:00:02]} Bxf5 {[%emt 0:00:02]} 16. Bxb6 {[%emt 0:00:07]} axb6 {[%emt 0:00:26]} 17. Rxf5 {[%emt 0:00:02]} d4 {[%emt 0:00:03]} 18. Ne4 {[%emt 0:00:09]} O-O {[%emt 0:00:06]} 19. Qg4 {[%emt 0:00:04]} Kh8 {[%emt 0:01:25]} 20. Raf1 {[%emt 0:00:04]} d3 {[%emt 0:00:20]} 21. Rxf7 {[%emt 0:00:08]} Rxf7 {[%emt 0:00:02]} 22. Rxf7 {[%emt 0:00:02]} Qg8 {[%emt 0:00:03]} 23. Rf2 {[%emt 0:00:40]} Rxa2 {[%emt 0:00:07]} 24. cxd3 {[%emt 0:00:03]} Ra1+ {[%emt 0:00:02]} 25. Rf1 {[%emt 0:00:04]} Rxf1# {[%emt 0:00:02]} 0-1